[Event "Early-Titled-Tuesday-Blitz-October-17-2023"]
[Site "Chess.com"]
[Date "2023.10.17"]
[Round "3"]
[White "MdChess1734"]
[Black "GregLeBarbare"]
[Result "1-0"]
[WhiteElo "2417"]
[BlackElo "2198"]
[TimeControl "180+1"]
[EndTime "8:31:30 PDT"]
[Termination "MdChess1734 won by resignation"]

1. e4 {[%clk 0:02:55.5]} 1... c6 {[%clk 0:02:57.9]} 2. d4 {[%clk 0:02:52.7]}
2... d5 {[%clk 0:02:58]} 3. Nc3 {[%clk 0:02:52.7]} 3... dxe4 {[%clk 0:02:57.6]}
4. Nxe4 {[%clk 0:02:53.3]} 4... Nf6 {[%clk 0:02:58.5]} 5. Ng3 {[%clk 0:02:53.8]}
5... Bg4 {[%clk 0:02:47.1]} 6. Be2 {[%clk 0:02:35.1]} 6... Bxe2 {[%clk
0:02:46.7]} 7. N1xe2 {[%clk 0:02:34.5]} 7... e6 {[%clk 0:02:42.3]} 8. Qd3 {[%clk
0:02:23.8]} 8... Nbd7 {[%clk 0:02:38.1]} 9. Bd2 {[%clk 0:02:20.8]} 9... Be7
{[%clk 0:02:27]} 10. O-O {[%clk 0:02:19.3]} 10... O-O {[%clk 0:02:27]} 11. Nf4
{[%clk 0:02:19.3]} 11... Qb6 {[%clk 0:02:13.4]} 12. c4 {[%clk 0:01:37]} 12...
Rad8 {[%clk 0:02:09.1]} 13. Be3 {[%clk 0:01:17.4]} 13... c5 {[%clk 0:02:03.8]}
14. Rfd1 {[%clk 0:01:01.6]} 14... cxd4 {[%clk 0:01:52.8]} 15. Bxd4 {[%clk
0:01:01.2]} 15... Bc5 {[%clk 0:01:53.4]} 16. Bxc5 {[%clk 0:00:49.8]} 16... Nxc5
{[%clk 0:01:54.3]} 17. Qe2 {[%clk 0:00:50.3]} 17... Rxd1+ {[%clk 0:01:47.5]} 18.
Rxd1 {[%clk 0:00:50.3]} 18... Rd8 {[%clk 0:01:48.1]} 19. b3 {[%clk 0:00:47.6]}
19... Qc7 {[%clk 0:01:41.5]} 20. Ngh5 {[%clk 0:00:44.8]} 20... Nxh5 {[%clk
0:01:36.2]} 21. Nxh5 {[%clk 0:00:43.9]} 21... Rxd1+ {[%clk 0:01:35]} 22. Qxd1
{[%clk 0:00:43.6]} 22... Qd7 {[%clk 0:01:35.5]} 23. Qg4 {[%clk 0:00:37.4]} 23...
Kf8 {[%clk 0:01:24.8]} 24. Qxg7+ {[%clk 0:00:32.7]} 24... Ke7 {[%clk 0:01:25]}
25. Qg5+ {[%clk 0:00:23.5]} 25... Kd6 {[%clk 0:01:25.2]} 26. Nf6 {[%clk
0:00:20.6]} 26... Qc6 {[%clk 0:01:15.9]} 27. b4 {[%clk 0:00:19.4]} 27... Nd3
{[%clk 0:01:12.7]} 28. c5+ {[%clk 0:00:17]} 28... Kc7 {[%clk 0:01:07.5]} 29.
Qg3+ {[%clk 0:00:17.3]} 29... e5 {[%clk 0:01:07.9]} 30. Qxd3 {[%clk 0:00:17.5]}
30... Qxf6 {[%clk 0:01:08.1]} 31. g3 {[%clk 0:00:16.1]} 31... Qe6 {[%clk
0:01:06.1]} 32. a3 {[%clk 0:00:16.2]} 32... f5 {[%clk 0:01:05.7]} 33. Qe3 {[%clk
0:00:14.3]} 33... Qd5 {[%clk 0:01:02.1]} 34. h4 {[%clk 0:00:13]} 34... a5 {[%clk
0:01:00.4]} 35. Kh2 {[%clk 0:00:13.5]} 35... axb4 {[%clk 0:00:59.8]} 36. axb4
{[%clk 0:00:14.2]} 36... Kc6 {[%clk 0:00:57.9]} 37. Qa3 {[%clk 0:00:13.8]} 37...
Kb5 {[%clk 0:00:56.5]} 38. Qa5+ {[%clk 0:00:13.1]} 38... Kc4 {[%clk 0:00:56.8]}
39. Qa2+ {[%clk 0:00:12.5]} 39... Kd4 {[%clk 0:00:57.2]} 40. Qd2+ {[%clk
0:00:12.4]} 40... Kc4 {[%clk 0:00:57.4]} 41. Qa2+ {[%clk 0:00:11.7]} 41... Kd4
{[%clk 0:00:57.4]} 42. Qb2+ {[%clk 0:00:12.2]} 42... Ke4 {[%clk 0:00:57]} 43.
Qe2+ {[%clk 0:00:11.3]} 43... Kd4 {[%clk 0:00:57.4]} 44. Kh3 {[%clk 0:00:07.6]}
44... e4 {[%clk 0:00:53.7]} 45. Qd2+ {[%clk 0:00:07.2]} 45... Ke5 {[%clk
0:00:53.9]} 46. Qb2+ {[%clk 0:00:07.2]} 46... Ke6 {[%clk 0:00:53.3]} 47. Kh2
{[%clk 0:00:07.7]} 47... h5 {[%clk 0:00:53.3]} 48. Qe2 {[%clk 0:00:07.2]} 48...
f4 {[%clk 0:00:52.7]} 49. gxf4 {[%clk 0:00:06.7]} 49... Qf5 {[%clk 0:00:52.9]}
50. Kg3 {[%clk 0:00:06.9]} 50... Qg6+ {[%clk 0:00:51.7]} 51. Kh2 {[%clk
0:00:06]} 51... Qf5 {[%clk 0:00:52.2]} 52. Qe3 {[%clk 0:00:06.1]} 52... Kd5
{[%clk 0:00:50.5]} 53. Qb3+ {[%clk 0:00:04.1]} 53... Kd4 {[%clk 0:00:49.3]} 54.
Qe3+ {[%clk 0:00:04.1]} 54... Kd5 {[%clk 0:00:49.6]} 55. Qd2+ {[%clk 0:00:04.4]}
55... Kc4 {[%clk 0:00:49.7]} 56. Qc2+ {[%clk 0:00:02.9]} 56... Kxb4 {[%clk
0:00:49.1]} 57. Qd2+ {[%clk 0:00:03.4]} 57... Kxc5 {[%clk 0:00:47.9]} 58. Qe3+
{[%clk 0:00:04]} 58... Kc4 {[%clk 0:00:45]} 59. f3 {[%clk 0:00:04.4]} 59... exf3
{[%clk 0:00:42.9]} 60. Qxf3 {[%clk 0:00:05]} 60... b5 {[%clk 0:00:42.5]} 61.
Qe2+ {[%clk 0:00:05.3]} 61... Kd4 {[%clk 0:00:34.4]} 62. Qd2+ {[%clk 0:00:04.4]}
62... Ke4 {[%clk 0:00:33.9]} 63. Qc2+ {[%clk 0:00:02.1]} 63... Kxf4 {[%clk
0:00:34]} 64. Qf2+ {[%clk 0:00:02.7]} 64... Ke5 {[%clk 0:00:33.4]} 65. Qc5+
{[%clk 0:00:03.2]} 65... Kf6 {[%clk 0:00:32.4]} 66. Qc6+ {[%clk 0:00:03.7]}
66... Kf7 {[%clk 0:00:30.4]} 67. Qc7+ {[%clk 0:00:03.1]} 67... Ke6 {[%clk
0:00:29.2]} 68. Qc6+ {[%clk 0:00:03.3]} 68... Ke7 {[%clk 0:00:29.2]} 69. Qc7+
{[%clk 0:00:02.6]} 69... Qd7 {[%clk 0:00:29.1]} 70. Qe5+ {[%clk 0:00:03.2]}
70... Kd8 {[%clk 0:00:29.2]} 71. Qxh5 {[%clk 0:00:03.5]} 71... Kc7 {[%clk
0:00:28.2]} 72. Qf3 {[%clk 0:00:03]} 72... Qd2+ {[%clk 0:00:24.8]} 73. Kg3
{[%clk 0:00:02.9]} 73... b4 {[%clk 0:00:25.7]} 74. h5 {[%clk 0:00:01.8]} 74...
Qg5+ {[%clk 0:00:15.6]} 75. Kh3 {[%clk 0:00:01.7]} 75... Kb6 {[%clk 0:00:07.8]}
76. Qf7 {[%clk 0:00:02.4]} 76... Kc5 {[%clk 0:00:05.8]} 77. Qf2+ {[%clk
0:00:02.6]} 77... Kc4 {[%clk 0:00:05.8]} 78. Qe2+ {[%clk 0:00:02.5]} 78... Kc3
{[%clk 0:00:05.9]} 79. Qf3+ {[%clk 0:00:02.3]} 79... Kb2 {[%clk 0:00:05.8]} 80.
Qg2+ {[%clk 0:00:02.7]} 80... Ka3 {[%clk 0:00:06.2]} 81. Qxg5 {[%clk 0:00:02.5]}
1-0

[Event "Early-Titled-Tuesday-Blitz-October-17-2023"]
[Site "Chess.com"]
[Date "2023.10.17"]
[Round "3"]
[White "AlexPapasimakopoulos"]
[Black "Manukyan_Artak"]
[Result "0-1"]
[WhiteElo "2690"]
[BlackElo "2487"]
[TimeControl "180+1"]
[EndTime "8:31:56 PDT"]
[Termination "Manukyan_Artak won by checkmate"]

1. d4 {[%clk 0:02:59.7]} 1... d5 {[%clk 0:02:50.2]} 2. c4 {[%clk 0:02:57.4]}
2... dxc4 {[%clk 0:02:50.5]} 3. Nf3 {[%clk 0:02:57.1]} 3... Nf6 {[%clk
0:02:48.3]} 4. e3 {[%clk 0:02:28.1]} 4... Bg4 {[%clk 0:02:42.1]} 5. Bxc4 {[%clk
0:02:27.8]} 5... e6 {[%clk 0:02:41.9]} 6. O-O {[%clk 0:02:27.2]} 6... c5 {[%clk
0:02:35.8]} 7. h3 {[%clk 0:02:25.5]} 7... Bh5 {[%clk 0:02:32.8]} 8. Nc3 {[%clk
0:02:24.5]} 8... Nc6 {[%clk 0:02:31.3]} 9. d5 {[%clk 0:02:23.8]} 9... exd5
{[%clk 0:02:30.6]} 10. Nxd5 {[%clk 0:02:24.7]} 10... Be7 {[%clk 0:02:26.7]} 11.
b3 {[%clk 0:02:15]} 11... O-O {[%clk 0:02:25.6]} 12. Nxe7+ {[%clk 0:02:15]}
12... Qxe7 {[%clk 0:02:25.4]} 13. Bb2 {[%clk 0:01:56.6]} 13... Rfd8 {[%clk
0:02:13.7]} 14. Qc2 {[%clk 0:01:49.8]} 14... Bxf3 {[%clk 0:02:12.5]} 15. gxf3
{[%clk 0:01:49.7]} 15... Ne5 {[%clk 0:02:03.7]} 16. Be2 {[%clk 0:01:49.2]} 16...
Ng6 {[%clk 0:01:59.2]} 17. Rfd1 {[%clk 0:01:45.5]} 17... Nd5 {[%clk 0:01:41.3]}
18. Qc4 {[%clk 0:01:38.9]} 18... Nxe3 {[%clk 0:01:14.6]} 19. fxe3 {[%clk
0:01:23.7]} 19... Qxe3+ {[%clk 0:01:15.5]} 20. Kf1 {[%clk 0:01:23]} 20... Re8
{[%clk 0:01:08.3]} 21. Bc1 {[%clk 0:01:16.3]} 21... Qe7 {[%clk 0:01:02.3]} 22.
Rd5 {[%clk 0:00:58.6]} 22... Rac8 {[%clk 0:00:51.9]} 23. Bg5 {[%clk 0:00:55.6]}
23... Qe6 {[%clk 0:00:49.2]} 24. Kf2 {[%clk 0:00:32.6]} 24... h6 {[%clk
0:00:42.1]} 25. Bd2 {[%clk 0:00:25]} 25... b5 {[%clk 0:00:31]} 26. Qd3 {[%clk
0:00:19]} 26... Qxh3 {[%clk 0:00:28.6]} 27. Rg1 {[%clk 0:00:15.6]} 27... c4
{[%clk 0:00:24.3]} 28. bxc4 {[%clk 0:00:15.2]} 28... bxc4 {[%clk 0:00:23.5]} 29.
Qf5 {[%clk 0:00:11.7]} 29... Qh2+ {[%clk 0:00:21.6]} 30. Rg2 {[%clk 0:00:12.3]}
30... Rxe2+ {[%clk 0:00:21.8]} 31. Kxe2 {[%clk 0:00:13.2]} 31... Qxg2+ {[%clk
0:00:22]} 32. Kd1 {[%clk 0:00:13.9]} 32... Rb8 {[%clk 0:00:16.3]} 33. Rd7 {[%clk
0:00:13.4]} 33... Qg1+ {[%clk 0:00:16.5]} 34. Be1 {[%clk 0:00:13.8]} 34... Kh7
{[%clk 0:00:12.3]} 35. Rxf7 {[%clk 0:00:12.3]} 35... Qd4+ {[%clk 0:00:11.7]} 36.
Ke2 {[%clk 0:00:11.2]} 36... Re8+ {[%clk 0:00:11.1]} 37. Kf1 {[%clk 0:00:10.8]}
37... Qd3+ {[%clk 0:00:11.3]} 38. Qxd3 {[%clk 0:00:10.7]} 38... cxd3 {[%clk
0:00:12.2]} 39. Rd7 {[%clk 0:00:11.2]} 39... Ne5 {[%clk 0:00:11.9]} 40. Rd5
{[%clk 0:00:10.7]} 40... Nxf3 {[%clk 0:00:12.2]} 41. Bc3 {[%clk 0:00:11.1]}
41... d2 {[%clk 0:00:11.5]} 42. Bxd2 {[%clk 0:00:11.7]} 42... Nxd2+ {[%clk
0:00:11.2]} 43. Rxd2 {[%clk 0:00:12.6]} 43... Re5 {[%clk 0:00:11.2]} 44. Kf2
{[%clk 0:00:10.3]} 44... Ra5 {[%clk 0:00:11]} 45. Kg3 {[%clk 0:00:09.8]} 45...
h5 {[%clk 0:00:11.4]} 46. Kh4 {[%clk 0:00:10.2]} 46... Kh6 {[%clk 0:00:11.9]}
47. Rd6+ {[%clk 0:00:10.4]} 47... g6 {[%clk 0:00:12.4]} 48. Rd2 {[%clk
0:00:11.3]} 48... Ra4+ {[%clk 0:00:12.9]} 49. Kg3 {[%clk 0:00:11.9]} 49... h4+
{[%clk 0:00:12.8]} 50. Kh3 {[%clk 0:00:12.8]} 50... g5 {[%clk 0:00:13.2]} 51.
Rc2 {[%clk 0:00:12.9]} 51... Kh5 {[%clk 0:00:13.4]} 52. Kh2 {[%clk 0:00:13.3]}
52... Ra3 {[%clk 0:00:13.6]} 53. Rd2 {[%clk 0:00:12.5]} 53... h3 {[%clk
0:00:12]} 54. Rc2 {[%clk 0:00:11.2]} 54... g4 {[%clk 0:00:12.4]} 55. Kh1 {[%clk
0:00:06.1]} 55... Kh4 {[%clk 0:00:12.1]} 56. Rd2 {[%clk 0:00:05.6]} 56... Rc3
{[%clk 0:00:10.5]} 57. Rd1 {[%clk 0:00:04.6]} 57... Kg3 {[%clk 0:00:08.6]} 58.
Rg1+ {[%clk 0:00:04.1]} 58... Kf4 {[%clk 0:00:08.9]} 59. Rf1+ {[%clk 0:00:04.5]}
59... Kg5 {[%clk 0:00:08.7]} 60. Rd1 {[%clk 0:00:02]} 60... Rc2 {[%clk
0:00:07.9]} 61. a4 {[%clk 0:00:02.5]} 61... Ra2 {[%clk 0:00:07.5]} 62. Rd5+
{[%clk 0:00:01.7]} 62... Kh4 {[%clk 0:00:07.6]} 63. Rd4 {[%clk 0:00:01.6]} 63...
a5 {[%clk 0:00:04.6]} 64. Rc4 {[%clk 0:00:01.5]} 64... Re2 {[%clk 0:00:02.9]}
65. Kg1 {[%clk 0:00:02]} 65... Kg3 {[%clk 0:00:02.2]} 66. Rc3+ {[%clk
0:00:01.7]} 66... Kf4 {[%clk 0:00:02.6]} 67. Rc4+ {[%clk 0:00:02.2]} 67... Kf3
{[%clk 0:00:03.2]} 68. Rc3+ {[%clk 0:00:02.1]} 68... Re3 {[%clk 0:00:03.7]} 69.
Rc1 {[%clk 0:00:02.6]} 69... g3 {[%clk 0:00:03.4]} 70. Rf1+ {[%clk 0:00:03.2]}
70... Ke4 {[%clk 0:00:03.9]} 71. Rb1 {[%clk 0:00:03.1]} 71... Re2 {[%clk
0:00:03.4]} 72. Kf1 {[%clk 0:00:03.5]} 72... Rh2 {[%clk 0:00:03.1]} 73. Kg1
{[%clk 0:00:03.8]} 73... Rg2+ {[%clk 0:00:03.5]} 74. Kh1 {[%clk 0:00:03.9]}
74... Ra2 {[%clk 0:00:03.7]} 75. Kg1 {[%clk 0:00:03.5]} 75... Kd4 {[%clk
0:00:02.2]} 76. Rd1+ {[%clk 0:00:03.7]} 76... Kc3 {[%clk 0:00:02.4]} 77. Re1
{[%clk 0:00:04]} 77... Kb4 {[%clk 0:00:01.8]} 78. Re4+ {[%clk 0:00:03.9]} 78...
Kc5 {[%clk 0:00:02.3]} 79. Re5+ {[%clk 0:00:04.2]} 79... Kd4 {[%clk 0:00:02.7]}
80. Re1 {[%clk 0:00:05]} 80... Kd3 {[%clk 0:00:01.6]} 81. Rf1 {[%clk 0:00:05.2]}
81... Ke3 {[%clk 0:00:02]} 82. Re1+ {[%clk 0:00:05.4]} 82... Re2 {[%clk
0:00:01.5]} 83. Rc1 {[%clk 0:00:05.4]} 83... Kf3 {[%clk 0:00:01.9]} 84. Rc3+
{[%clk 0:00:05.7]} 84... Re3 {[%clk 0:00:02.4]} 85. Rc1 {[%clk 0:00:06.5]} 85...
Ra3 {[%clk 0:00:03]} 86. Rf1+ {[%clk 0:00:06.3]} 86... Kg4 {[%clk 0:00:03.6]}
87. Rb1 {[%clk 0:00:06.1]} 87... Rxa4 {[%clk 0:00:04.1]} 88. Rc1 {[%clk
0:00:03.8]} 88... Ra3 {[%clk 0:00:03.2]} 89. Rd1 {[%clk 0:00:03.4]} 89... Kf3
{[%clk 0:00:03.5]} 90. Rf1+ {[%clk 0:00:03.8]} 90... Kg4 {[%clk 0:00:04]} 91.
Rc1 {[%clk 0:00:03.9]} 91... a4 {[%clk 0:00:04.6]} 92. Rd1 {[%clk 0:00:03.5]}
92... Kf4 {[%clk 0:00:04.9]} 93. Rf1+ {[%clk 0:00:03.5]} 93... Ke3 {[%clk
0:00:05.2]} 94. Re1+ {[%clk 0:00:03.8]} 94... Kf4 {[%clk 0:00:05.4]} 95. Rf1+
{[%clk 0:00:04.3]} 95... Rf3 {[%clk 0:00:06]} 96. Rb1 {[%clk 0:00:04.2]} 96...
a3 {[%clk 0:00:06.9]} 97. Rc1 {[%clk 0:00:03.9]} 97... Rb3 {[%clk 0:00:06.6]}
98. Rf1+ {[%clk 0:00:03.7]} 98... Kg4 {[%clk 0:00:07]} 99. Rc1 {[%clk
0:00:03.6]} 99... a2 {[%clk 0:00:07.5]} 100. Rc4+ {[%clk 0:00:01.6]} 100... Kf3
{[%clk 0:00:07.7]} 101. Rc1 {[%clk 0:00:01.2]} 101... Rb1 {[%clk 0:00:08]} 102.
Re1 {[%clk 0:00:01.1]} 102... Rxe1# {[%clk 0:00:08]} 0-1

[Event "Early-Titled-Tuesday-Blitz-October-17-2023"]
[Site "Chess.com"]
[Date "2023.10.17"]
[Round "3"]
[White "Sina_Movahed"]
[Black "Egor_Koshulyan"]
[Result "0-1"]
[WhiteElo "2990"]
[BlackElo "2733"]
[TimeControl "180+1"]
[EndTime "8:33:52 PDT"]
[Termination "Egor_Koshulyan won on time"]

1. e4 {[%clk 0:02:57]} 1... c5 {[%clk 0:02:59.4]} 2. Nf3 {[%clk 0:02:56.7]} 2...
Nc6 {[%clk 0:02:59.3]} 3. d4 {[%clk 0:02:47.9]} 3... cxd4 {[%clk 0:03:00.2]} 4.
Nxd4 {[%clk 0:02:48.8]} 4... Nf6 {[%clk 0:02:59.9]} 5. Nc3 {[%clk 0:02:48.8]}
5... e5 {[%clk 0:03:00.4]} 6. Ndb5 {[%clk 0:02:47.2]} 6... d6 {[%clk 0:03:00.9]}
7. Nd5 {[%clk 0:02:47.8]} 7... Nxd5 {[%clk 0:03:01]} 8. exd5 {[%clk 0:02:48.7]}
8... Nb8 {[%clk 0:03:01.9]} 9. c4 {[%clk 0:02:47.9]} 9... a6 {[%clk 0:03:01.9]}
10. Nc3 {[%clk 0:02:47.4]} 10... Be7 {[%clk 0:03:02.6]} 11. Bd3 {[%clk
0:02:39.8]} 11... O-O {[%clk 0:03:02]} 12. O-O {[%clk 0:02:39.7]} 12... f5
{[%clk 0:03:02]} 13. f3 {[%clk 0:02:39.6]} 13... Nd7 {[%clk 0:03:01.1]} 14. Kh1
{[%clk 0:02:39.1]} 14... g6 {[%clk 0:02:44.7]} 15. Rb1 {[%clk 0:02:37.4]} 15...
Bg5 {[%clk 0:02:36.7]} 16. b4 {[%clk 0:02:36]} 16... b6 {[%clk 0:02:31]} 17. a3
{[%clk 0:02:35.1]} 17... e4 {[%clk 0:02:23.6]} 18. fxe4 {[%clk 0:02:34.3]} 18...
f4 {[%clk 0:02:23.5]} 19. Bb2 {[%clk 0:02:16.8]} 19... Ne5 {[%clk 0:02:22.3]}
20. Be2 {[%clk 0:02:17.4]} 20... f3 {[%clk 0:02:19.2]} 21. Bxf3 {[%clk
0:02:14.5]} 21... Nxc4 {[%clk 0:02:17.3]} 22. Qe2 {[%clk 0:02:14]} 22... Nxb2
{[%clk 0:02:14.3]} 23. Rxb2 {[%clk 0:02:13.9]} 23... Bf6 {[%clk 0:02:14.7]} 24.
Rc2 {[%clk 0:02:13.8]} 24... Be5 {[%clk 0:02:14.6]} 25. g3 {[%clk 0:02:10.6]}
25... Bd7 {[%clk 0:02:05]} 26. Bg2 {[%clk 0:02:10.4]} 26... Rxf1+ {[%clk
0:02:01]} 27. Bxf1 {[%clk 0:02:09.3]} 27... Qf6 {[%clk 0:01:53.8]} 28. Qe1
{[%clk 0:01:49.9]} 28... Rc8 {[%clk 0:01:46.5]} 29. Rf2 {[%clk 0:01:46.8]} 29...
Bxc3 {[%clk 0:01:44.5]} 30. Rxf6 {[%clk 0:01:46.5]} 30... Bxe1 {[%clk
0:01:42.9]} 31. Rxd6 {[%clk 0:01:47.4]} 31... Bg4 {[%clk 0:01:42]} 32. Bxa6
{[%clk 0:01:41.5]} 32... Rc1 {[%clk 0:01:11.2]} 33. Kg2 {[%clk 0:01:39.4]} 33...
Rc2+ {[%clk 0:01:10.6]} 34. Kf1 {[%clk 0:01:36.3]} 34... Bc3 {[%clk 0:01:08.4]}
35. Bc8 {[%clk 0:01:17.1]} 35... Be2+ {[%clk 0:00:24]} 36. Kf2 {[%clk
0:01:16.6]} 36... Bd4+ {[%clk 0:00:23.8]} 37. Ke1 {[%clk 0:01:16.4]} 37... Bf3
{[%clk 0:00:21.1]} 38. Rc6 {[%clk 0:01:13.5]} 38... Re2+ {[%clk 0:00:18.9]} 39.
Kd1 {[%clk 0:01:08.3]} 39... Rxe4+ {[%clk 0:00:17.5]} 40. Kd2 {[%clk 0:01:08.9]}
40... Re5 {[%clk 0:00:14.3]} 41. Be6+ {[%clk 0:01:04.3]} 41... Kg7 {[%clk
0:00:14.5]} 42. Rc7+ {[%clk 0:01:02.2]} 42... Kh6 {[%clk 0:00:14.4]} 43. Bg8
{[%clk 0:01:02.8]} 43... Bxd5 {[%clk 0:00:10.8]} 44. Rxh7+ {[%clk 0:01:01.7]}
44... Kg5 {[%clk 0:00:10.9]} 45. Bxd5 {[%clk 0:01:02.2]} 45... Rxd5 {[%clk
0:00:11.7]} 46. Kc2 {[%clk 0:01:02.6]} 46... Bf6 {[%clk 0:00:09.8]} 47. h4+
{[%clk 0:00:57.4]} 47... Kg4 {[%clk 0:00:04.5]} 48. Rh6 {[%clk 0:00:57.2]} 48...
Kf5 {[%clk 0:00:04.1]} 49. g4+ {[%clk 0:00:56.1]} 49... Kxg4 {[%clk 0:00:03.7]}
50. Rxg6+ {[%clk 0:00:56.6]} 50... Kf5 {[%clk 0:00:04.4]} 51. h5 {[%clk
0:00:55.8]} 51... Rd4 {[%clk 0:00:04.1]} 52. Rg8 {[%clk 0:00:52]} 52... Rh4
{[%clk 0:00:04.7]} 53. Rb8 {[%clk 0:00:52.1]} 53... Bd4 {[%clk 0:00:05.3]} 54.
Rd8 {[%clk 0:00:51.2]} 54... Be5 {[%clk 0:00:04.8]} 55. Rf8+ {[%clk 0:00:51.2]}
55... Kg5 {[%clk 0:00:02.4]} 56. Re8 {[%clk 0:00:49.9]} 56... Bd4 {[%clk
0:00:01.7]} 57. Kb3 {[%clk 0:00:45.1]} 57... Kxh5 {[%clk 0:00:02.3]} 58. a4
{[%clk 0:00:42.7]} 58... Bf2 {[%clk 0:00:02.2]} 59. Rf8 {[%clk 0:00:41.8]} 59...
Be1 {[%clk 0:00:02.5]} 60. Rf5+ {[%clk 0:00:33.6]} 60... Kg6 {[%clk 0:00:02.9]}
61. Rb5 {[%clk 0:00:34.5]} 61... Bf2 {[%clk 0:00:03.6]} 62. Rd5 {[%clk
0:00:29.8]} 62... Be1 {[%clk 0:00:02.2]} 63. Rd6+ {[%clk 0:00:30.2]} 63... Kf7
{[%clk 0:00:02.9]} 64. Rxb6 {[%clk 0:00:31.1]} 64... Ke7 {[%clk 0:00:03.6]} 65.
b5 {[%clk 0:00:24.7]} 65... Kd7 {[%clk 0:00:04.2]} 66. Rc6 {[%clk 0:00:24.9]}
66... Rb4+ {[%clk 0:00:03.9]} 67. Ka3 {[%clk 0:00:24.9]} 67... Rd4 {[%clk
0:00:03.7]} 68. Rg6 {[%clk 0:00:24]} 68... Bb4+ {[%clk 0:00:04.1]} 69. Kb3
{[%clk 0:00:24.1]} 69... Bd6 {[%clk 0:00:04]} 70. Rh6 {[%clk 0:00:21]} 70...
Rb4+ {[%clk 0:00:03.9]} 71. Kc3 {[%clk 0:00:20.1]} 71... Rxa4 {[%clk 0:00:04.3]}
72. Rh7+ {[%clk 0:00:20.7]} 72... Kc8 {[%clk 0:00:03.3]} 73. Rh6 {[%clk
0:00:18]} 73... Bc7 {[%clk 0:00:02.3]} 74. Kb3 {[%clk 0:00:16]} 74... Ra5 {[%clk
0:00:01.7]} 75. Kb4 {[%clk 0:00:15.8]} 75... Ra1 {[%clk 0:00:02]} 76. Kc5 {[%clk
0:00:15.7]} 76... Rc1+ {[%clk 0:00:02.2]} 77. Kd5 {[%clk 0:00:15.7]} 77... Kb7
{[%clk 0:00:03.1]} 78. Rc6 {[%clk 0:00:15.4]} 78... Rb1 {[%clk 0:00:03.2]} 79.
Kc4 {[%clk 0:00:16]} 79... Rc1+ {[%clk 0:00:01.8]} 80. Kb4 {[%clk 0:00:15.8]}
80... Rh1 {[%clk 0:00:02.7]} 81. Kc4 {[%clk 0:00:15.8]} 81... Rh4+ {[%clk
0:00:03.1]} 82. Kc5 {[%clk 0:00:16.1]} 82... Rh5+ {[%clk 0:00:02.8]} 83. Kb4
{[%clk 0:00:16.6]} 83... Bb6 {[%clk 0:00:03]} 84. Rc4 {[%clk 0:00:15.3]} 84...
Re5 {[%clk 0:00:02.8]} 85. Rg4 {[%clk 0:00:15.3]} 85... Bc7 {[%clk 0:00:03.1]}
86. Kc4 {[%clk 0:00:15.7]} 86... Kb6 {[%clk 0:00:03.1]} 87. Rg6+ {[%clk
0:00:16.3]} 87... Kb7 {[%clk 0:00:03.7]} 88. Rh6 {[%clk 0:00:15.8]} 88... Bb6
{[%clk 0:00:03.8]} 89. Rh7+ {[%clk 0:00:15.9]} 89... Kb8 {[%clk 0:00:03.7]} 90.
Rf7 {[%clk 0:00:16]} 90... Rc5+ {[%clk 0:00:03.5]} 91. Kb4 {[%clk 0:00:16.1]}
91... Rc1 {[%clk 0:00:04.2]} 92. Rf6 {[%clk 0:00:16]} 92... Bc7 {[%clk
0:00:04.6]} 93. Rf7 {[%clk 0:00:16.2]} 93... Kb7 {[%clk 0:00:05]} 94. Rf6 {[%clk
0:00:16.4]} 94... Rd1 {[%clk 0:00:05.4]} 95. Kc5 {[%clk 0:00:16.4]} 95... Re1
{[%clk 0:00:04.5]} 96. b6 {[%clk 0:00:15.7]} 96... Rc1+ {[%clk 0:00:04.4]} 97.
Kb5 {[%clk 0:00:13.2]} 97... Rb1+ {[%clk 0:00:04.8]} 98. Kc4 {[%clk 0:00:13.9]}
98... Bxb6 {[%clk 0:00:05.3]} 99. Rf7+ {[%clk 0:00:14.5]} 99... Ka6 {[%clk
0:00:05.8]} 100. Rf3 {[%clk 0:00:15.1]} 100... Rc1+ {[%clk 0:00:06.2]} 101. Rc3
{[%clk 0:00:15.3]} 101... Rh1 {[%clk 0:00:06.9]} 102. Ra3+ {[%clk 0:00:15.4]}
102... Kb7 {[%clk 0:00:07]} 103. Rf3 {[%clk 0:00:16.2]} 103... Rh4+ {[%clk
0:00:06.5]} 104. Kd5 {[%clk 0:00:16.1]} 104... Rh5+ {[%clk 0:00:06.8]} 105. Ke4
{[%clk 0:00:16.6]} 105... Bc7 {[%clk 0:00:05.9]} 106. Rf6 {[%clk 0:00:16.7]}
106... Kc8 {[%clk 0:00:05.1]} 107. Rf7 {[%clk 0:00:17.3]} 107... Kb7 {[%clk
0:00:04.5]} 108. Rf5 {[%clk 0:00:17.5]} 108... Rh4+ {[%clk 0:00:04.5]} 109. Kd5
{[%clk 0:00:17.4]} 109... Rh1 {[%clk 0:00:05]} 110. Rf6 {[%clk 0:00:16.2]}
110... Rd1+ {[%clk 0:00:05.6]} 111. Ke4 {[%clk 0:00:16.8]} 111... Bb6 {[%clk
0:00:05.1]} 112. Rg6 {[%clk 0:00:16.8]} 112... Ka6 {[%clk 0:00:05.6]} 113. Rg5
{[%clk 0:00:17.1]} 113... Bc7 {[%clk 0:00:04.4]} 114. Rd5 {[%clk 0:00:16.1]}
114... Re1+ {[%clk 0:00:04.5]} 115. Kf5 {[%clk 0:00:16]} 115... Kb6 {[%clk
0:00:05]} 116. Rd4 {[%clk 0:00:15.1]} 116... Kc5 {[%clk 0:00:04.8]} 117. Re4
{[%clk 0:00:15.7]} 117... Rf1+ {[%clk 0:00:05.4]} 118. Ke6 {[%clk 0:00:15.8]}
118... Bf4 {[%clk 0:00:05.1]} 119. Re2 {[%clk 0:00:15]} 119... Bg3 {[%clk
0:00:04.4]} 120. Re3 {[%clk 0:00:14.9]} 120... Bh4 {[%clk 0:00:04.6]} 121. Re4
{[%clk 0:00:15.2]} 121... Bd8 {[%clk 0:00:04.1]} 122. Re5+ {[%clk 0:00:15.3]}
122... Kc6 {[%clk 0:00:03.1]} 123. Re4 {[%clk 0:00:14.8]} 123... Rf6+ {[%clk
0:00:03.3]} 124. Ke5 {[%clk 0:00:14.8]} 124... Rf8 {[%clk 0:00:04]} 125. Rc4+
{[%clk 0:00:15.4]} 125... Kd7 {[%clk 0:00:04.2]} 126. Kd5 {[%clk 0:00:15.8]}
126... Rf5+ {[%clk 0:00:04]} 127. Ke4 {[%clk 0:00:15.9]} 127... Rh5 {[%clk
0:00:04.5]} 128. Rc2 {[%clk 0:00:15.9]} 128... Bc7 {[%clk 0:00:04.6]} 129. Rg2
{[%clk 0:00:15.8]} 129... Re5+ {[%clk 0:00:04.2]} 130. Kd4 {[%clk 0:00:15.6]}
130... Rf5 {[%clk 0:00:04.7]} 131. Rg6 {[%clk 0:00:15.4]} 131... Bd6 {[%clk
0:00:04.8]} 132. Ke4 {[%clk 0:00:15.7]} 132... Re5+ {[%clk 0:00:04.8]} 133. Kd4
{[%clk 0:00:16.3]} 133... Kc6 {[%clk 0:00:05.4]} 134. Kc4 {[%clk 0:00:16.9]}
134... Rh5 {[%clk 0:00:05.5]} 135. Kd4 {[%clk 0:00:17.2]} 135... Rh4+ {[%clk
0:00:05.9]} 136. Kd3 {[%clk 0:00:17.7]} 136... Kd5 {[%clk 0:00:06.4]} 137. Rg8
{[%clk 0:00:17.3]} 137... Rh3+ {[%clk 0:00:06.4]} 138. Ke2 {[%clk 0:00:17.9]}
138... Be5 {[%clk 0:00:06.8]} 139. Ra8 {[%clk 0:00:17.4]} 139... Ke4 {[%clk
0:00:06.8]} 140. Ra4+ {[%clk 0:00:17.7]} 140... Bd4 {[%clk 0:00:07.4]} 141. Kf1
{[%clk 0:00:08.5]} 141... Rh2 {[%clk 0:00:07.2]} 142. Rb4 {[%clk 0:00:08.5]}
142... Kf3 {[%clk 0:00:06.3]} 0-1